Workbook

Sheet Лист1
A1: Школа | C1: МБОУ "Большековалинская ООШ" | F1: Утвердил: | G1: должность | H1: Директор
A2: Типовое примерное меню приготавливаемых блюд | G2: фамилия | H2: Забиров Н. А.
A3: Возрастная категория | E3: 7-11 лет | G3: дата | H3: 12 | I3: 1 | J3: 2026
H4: день | I4: месяц | J4: год
A5: Неделя | B5: День недели | C5: Прием пищи | D5: Раздел меню | E5: Блюда | F5: Вес блюда, г | G5: Белки | H5: Жиры | I5: Углеводы | J5: Калорийность | K5: № рецептуры | L5: Цена
A6: 1 | B6: 1 | C6: Завтрак | D6: фрукты | E6: Плоды и ягоды свежие (яблоки) | F6: 100 | G6: 0.40 | H6: 0.40 | I6: 9.80 | J6: 47.00 | K6: Хим.состав и калорийность российских продуктов питания табл 9 стр 184 , 2012 Дели +
D7: гор.блюдо | E7: Сырники из творога с кашей молочной "Дружба" с маслом сливочным | F7: 215 | G7: 13.65 | H7: 15.29 | I7: 32.32 | J7: 330.90 | K7: ТТК
D8: гор.напиток | E8: Чай с сахаром | F8: 200 | G8: 0.07 | H8: 0.02 | I8: 10.01 | J8: 40.00 | K8: № 376 Сбор.рец. На прод-ию для обуч. Во всех образ.учреж-Дели 2017
D9: хлеб | E9: Хлеб ржаной | F9: 30 | G9: 1.98 | H9: 0.36 | I9: 11.88 | J9: 59.40 | K9: Хим.состав и калорийность российских продуктов питания,табл 6, стр 144 , 2012 Дели +
D13: итого | F13: 545 | G13: 16.10 | H13: 16.07 | I13: 64.01 | J13: 477.30 | L13: 74.77
A14: =A6 -> 1 | B14: =B6 -> 1 | C14: Завтрак 2 | D14: фрукты
D17: итого | F17: =SUM(F14:F16) -> 0 | G17: =SUM(G14:G16) -> 0 | H17: 0 | I17: 0 | J17: 0 | L17: =SUM(L14:L22) -> 0
A18: =A6 -> 1 | B18: =B6 -> 1 | C18: Обед | D18: закуска
D19: 1 блюдо
D20: 2 блюдо
D21: гарнир
D22: напиток
D23: хлеб бел.
D24: хлеб черн.
D27: итого | F27: =SUM(F18:F26) -> 0 | G27: =SUM(G18:G26) -> 0 | H27: 0 | I27: 0 | J27: 0 | L27: =SUM(L24:L32) -> 0
A28: =A6 -> 1 | B28: =B6 -> 1 | C28: Полдник | D28: булочное
D29: напиток
D32: итого | F32: =SUM(F28:F31) -> 0 | G32: =SUM(G28:G31) -> 0 | H32: 0 | I32: 0 | J32: 0 | L32: =SUM(L25:L31) -> 0
A33: =A6 -> 1 | B33: =B6 -> 1 | C33: Ужин | D33: гор.блюдо
D34: гарнир
D35: напиток
D36: хлеб
D39: итого | F39: =SUM(F33:F38) -> 0 | G39: =SUM(G33:G38) -> 0 | H39: 0 | I39: 0 | J39: 0 | L39: =SUM(L33:L41) -> 0
A40: =A6 -> 1 | B40: =B6 -> 1 | C40: Ужин 2 | D40: кисломол.
D41: булочное
D42: напиток
D43: фрукты
D46: итого | F46: =SUM(F40:F45) -> 0 | G46: =SUM(G40:G45) -> 0 | H46: 0 | I46: 0 | J46: 0 | L46: =SUM(L40:L48) -> 0
A47: =A6 -> 1 | B47: =B6 -> 1 | C47: Итого за день: | F47: =F13+F17+F27+F32+F39+F46 -> 545 | G47: =G13+G17+G27+G32+G39+G46 -> 16.1 | H47: 16.07 | I47: 64.01 | J47: 477.30 | L47: 74.77
A48: 1 | B48: 2 | C48: Завтрак | D48: гор.блюдо | E48: Тефтели мясные запеченные в сметанно-томатном соусе | F48: 100 | G48: 9.08 | H48: 14.44 | I48: 10.87 | J48: 209.88 | K48: № 279/331 Сбор.рец. На прод-ию для обуч. Во всех образ.учреж-Дели 2017
D49: гор.блюдо | E49: Макаронные изделия отварные с маслом сливочным | F49: 153 | G49: 5.10 | H49: 4.53 | I49: 31.99 | J49: 189.30 | K49: № 203 Сбор.рец. На прод-ию для обуч. Во всех образ.учреж-Дели 2017
D50: гор.напиток | E50: Чай с сахаром, с лимоном | F50: 200 | G50: 0.11 | H50: 0.02 | I50: 10.15 | J50: 41.32 | K50: № 377 Сбор.рец. На прод-ию для обуч. Во всех образ.учреж-Дели 2017
D51: хлеб | E51: Хлеб пшеничный | F51: 30 | G51: 2.28 | H51: 0.24 | I51: 14.76 | J51: 70.50 | K51: Хим.состав и калорийность российских продуктов питания табл 6 стр 134 , 2012 Дели +
D52: хлеб | E52: Хлеб ржаной | F52: 30 | G52: 1.98 | H52: 0.36 | I52: 11.88 | J52: 59.40 | K52: Хим.состав и калорийность российских продуктов питания,табл 6, стр 144 , 2012 Дели +
D53: итого | F53: 513 | G53: =SUM(G48:G52) -> 18.56 | H53: =SUM(H48:H52) -> 19.58 | I53: 79.65 | J53: 570.40
L55: 74.77
A56: =A48 -> 1 | B56: =B48 -> 2 | C56: Завтрак 2 | D56: фрукты
D59: итого | F59: =SUM(F56:F58) -> 0 | G59: =SUM(G56:G58) -> 0 | H59: =SUM(H56:H58) -> 0 | I59: =SUM(I56:I58) -> 0 | J59: =SUM(J56:J58) -> 0 | L59: =SUM(L56:L64) -> 0
A60: =A48 -> 1 | B60: =B48 -> 2 | C60: Обед | D60: закуска
D61: 1 блюдо
D62: 2 блюдо
D63: гарнир
D64: напиток
D65: хлеб бел.
D66: хлеб черн.
D69: итого | F69: =SUM(F60:F68) -> 0 | G69: =SUM(G60:G68) -> 0 | H69: =SUM(H60:H68) -> 0 | I69: =SUM(I60:I68) -> 0 | J69: =SUM(J60:J68) -> 0 | L69: =SUM(L66:L74) -> 0
A70: =A48 -> 1 | B70: =B48 -> 2 | C70: Полдник | D70: булочное
D71: напиток
D74: итого | F74: =SUM(F70:F73) -> 0 | G74: =SUM(G70:G73) -> 0 | H74: =SUM(H70:H73) -> 0 | I74: =SUM(I70:I73) -> 0 | J74: =SUM(J70:J73) -> 0 | L74: =SUM(L67:L73) -> 0
A75: =A48 -> 1 | B75: =B48 -> 2 | C75: Ужин | D75: гор.блюдо
D76: гарнир
D77: напиток
D78: хлеб
D81: итого | F81: =SUM(F75:F80) -> 0 | G81: =SUM(G75:G80) -> 0 | H81: =SUM(H75:H80) -> 0 | I81: =SUM(I75:I80) -> 0 | J81: =SUM(J75:J80) -> 0 | L81: =SUM(L75:L83) -> 0
A82: =A48 -> 1 | B82: =B48 -> 2 | C82: Ужин 2 | D82: кисломол.
D83: булочное
D84: напиток
D85: фрукты
D88: итого | F88: =SUM(F82:F87) -> 0 | G88: =SUM(G82:G87) -> 0 | H88: =SUM(H82:H87) -> 0 | I88: =SUM(I82:I87) -> 0 | J88: =SUM(J82:J87) -> 0 | L88: =SUM(L82:L90) -> 0
A89: =A48 -> 1 | B89: =B48 -> 2 | C89: Итого за день: | F89: 513 | G89: 18.56 | H89: 19.58 | I89: 79.65 | J89: 570.40 | L89: 74.77
A90: 1 | B90: 3 | C90: Завтрак | D90: гор.блюдо | E90: Фрикассе из куриной грудки | F90: 100 | G90: 7.25 | H90: 7.80 | I90: 4.10 | J90: 141.62 | K90: ТТК
D91: гор.блюдо | E91: Пюре картофельное с маслом сливочным | F91: 153 | G91: 3.08 | H91: 6.25 | I91: 20.47 | J91: 150.45 | K91: № 312 Сбор.рец. На прод-ию для обуч. Во всех образ.учреж-Дели -2017
D92: гор.блюдо | E92: Капуста тушеная (доп.гарнир) | F92: 50 | G92: 1.02 | H92: 1.84 | I92: 3.95 | J92: 38.50 | K92: № 321 Сбор.рец. На прод-ию для обуч. Во всех образ.учреж-Дели 2017
D93: гор.напиток | E93: Чай с сахаром, с яблоком | F93: 200 | G93: 0.11 | H93: 0.06 | I93: 10.98 | J93: 44.70 | K93: № 376 Сбор.рец. На прод-ию для обуч. Во всех образ.учреж-Дели 2017
D94: хлеб | E94: Хлеб пшеничный | F94: 25 | G94: 1.90 | H94: 0.20 | I94: 12.30 | J94: 58.75 | K94: Хим.состав и калорийность российских продуктов питания табл 6 стр 134 , 2012 Дели +
D95: хлеб | E95: Хлеб ржаной | F95: 30 | G95: 1.98 | H95: 0.36 | I95: 11.88 | J95: 59.40 | K95: Хим.состав и калорийность российских продуктов питания,табл 6, стр 144 , 2012 Дели +
D98: итого | F98: 558 | G98: 15.34 | H98: 16.51 | I98: 63.67 | J98: 493.42 | L98: 74.77
A99: =A90 -> 1 | B99: =B90 -> 3 | C99: Завтрак 2 | D99: фрукты
D102: итого | F102: =SUM(F99:F101) -> 0 | G102: =SUM(G99:G101) -> 0 | H102: =SUM(H99:H101) -> 0 | I102: =SUM(I99:I101) -> 0 | J102: =SUM(J99:J101) -> 0 | L102: =SUM(L99:L107) -> 0
A103: =A90 -> 1 | B103: =B90 -> 3 | C103: Обед | D103: закуска
D104: 1 блюдо
D105: 2 блюдо
D106: гарнир
D107: напиток
D108: хлеб бел.
D109: хлеб черн.
D112: итого | F112: =SUM(F103:F111) -> 0 | G112: =SUM(G103:G111) -> 0 | H112: =SUM(H103:H111) -> 0 | I112: =SUM(I103:I111) -> 0 | J112: =SUM(J103:J111) -> 0 | L112: =SUM(L109:L117) -> 0
A113: =A90 -> 1 | B113: =B90 -> 3 | C113: Полдник | D113: булочное
D114: напиток
D117: итого | F117: =SUM(F113:F116) -> 0 | G117: =SUM(G113:G116) -> 0 | H117: =SUM(H113:H116) -> 0 | I117: =SUM(I113:I116) -> 0 | J117: =SUM(J113:J116) -> 0 | L117: =SUM(L110:L116) -> 0
A118: =A90 -> 1 | B118: =B90 -> 3 | C118: Ужин | D118: гор.блюдо
D119: гарнир
D120: напиток
D121: хлеб
D124: итого | F124: =SUM(F118:F123) -> 0 | G124: =SUM(G118:G123) -> 0 | H124: =SUM(H118:H123) -> 0 | I124: =SUM(I118:I123) -> 0 | J124: =SUM(J118:J123) -> 0 | L124: =SUM(L118:L126) -> 0
A125: =A90 -> 1 | B125: =B90 -> 3 | C125: Ужин 2 | D125: кисломол.
D126: булочное
D127: напиток
D128: фрукты
D131: итого | F131: =SUM(F125:F130) -> 0 | G131: =SUM(G125:G130) -> 0 | H131: =SUM(H125:H130) -> 0 | I131: =SUM(I125:I130) -> 0 | J131: =SUM(J125:J130) -> 0 | L131: =SUM(L125:L133) -> 0
A132: =A90 -> 1 | B132: =B90 -> 3 | C132: Итого за день: | F132: =F98+F102+F112+F117+F124+F131 -> 558 | G132: =G98+G102+G112+G117+G124+G131 -> 15.34 | H132: =H98+H102+H112+H117+H124+H131 -> 16.51 | I132: =I98+I102+I112+I117+I124+I131 -> 63.67 | J132: =J98+J102+J112+J117+J124+J131 -> 493.42 | L132: 74.77
A133: 1 | B133: 4 | C133: Завтрак | D133: фрукты | E133: Плоды и ягоды свежие (яблоки) | F133: 100 | G133: 0.40 | H133: 0.40 | I133: 9.80 | J133: 47.00 | K133: Хим.состав и калорийность российских продуктов питания табл 9 стр 184 , 2012 Дели +
D134: гор.блюдо | E134: Котлета домашняя из говядины с кашей гречневой рассыпчатой с маслом сливочным | F134: 228 | G134: 14.55 | H134: 17.06 | I134: 47.34 | J134: 400.39 | K134: ТТК
D135: гор.напиток | E135: Кофейный напиток с молоком | F135: 200 | G135: 3.17 | H135: 2.68 | I135: 15.95 | J135: 100.60 | K135: № 379 Сбор.рец. На прод-ию для обуч. Во всех образ.учреж-Дели 2017
D136: хлеб | E136: Хлеб ржаной | F136: 30 | G136: 1.98 | H136: 0.36 | I136: 11.88 | J136: 59.40 | K136: Хим.состав и калорийность российских продуктов питания,табл 6, стр 144 , 2012 Дели +
D141: итого | F141: 558 | G141: 20.10 | H141: 20.50 | I141: =I133+I134+I135+I136 -> 84.96 | J141: =J133+J134+J135+J136 -> 607.39 | L141: 74.77
A142: =A133 -> 1 | B142: =B133 -> 4 | C142: Завтрак 2 | D142: фрукты
D145: итого | F145: =SUM(F142:F144) -> 0 | G145: =SUM(G142:G144) -> 0 | H145: =SUM(H142:H144) -> 0 | I145: =SUM(I142:I144) -> 0 | J145: =SUM(J142:J144) -> 0 | L145: =SUM(L142:L150) -> 0
A146: =A133 -> 1 | B146: =B133 -> 4 | C146: Обед | D146: закуска
D147: 1 блюдо
D148: 2 блюдо
D149: гарнир
D150: напиток
D151: хлеб бел.
D152: хлеб черн.
D155: итого | F155: =SUM(F146:F154) -> 0 | G155: =SUM(G146:G154) -> 0 | H155: =SUM(H146:H154) -> 0 | I155: =SUM(I146:I154) -> 0 | J155: =SUM(J146:J154) -> 0 | L155: =SUM(L152:L160) -> 0
A156: =A133 -> 1 | B156: =B133 -> 4 | C156: Полдник | D156: булочное
D157: напиток
D160: итого | F160: =SUM(F156:F159) -> 0 | G160: =SUM(G156:G159) -> 0 | H160: =SUM(H156:H159) -> 0 | I160: =SUM(I156:I159) -> 0 | J160: =SUM(J156:J159) -> 0 | L160: =SUM(L153:L159) -> 0
A161: =A133 -> 1 | B161: =B133 -> 4 | C161: Ужин | D161: гор.блюдо
D162: гарнир
D163: напиток
D164: хлеб
D167: итого | F167: =SUM(F161:F166) -> 0 | G167: =SUM(G161:G166) -> 0 | H167: =SUM(H161:H166) -> 0 | I167: =SUM(I161:I166) -> 0 | J167: =SUM(J161:J166) -> 0 | L167: =SUM(L161:L169) -> 0
A168: =A133 -> 1 | B168: =B133 -> 4 | C168: Ужин 2 | D168: кисломол.
D169: булочное
D170: напиток
D171: фрукты
D174: итого | F174: =SUM(F168:F173) -> 0 | G174: =SUM(G168:G173) -> 0 | H174: =SUM(H168:H173) -> 0 | I174: =SUM(I168:I173) -> 0 | J174: =SUM(J168:J173) -> 0 | L174: =SUM(L168:L176) -> 0
A175: =A133 -> 1 | B175: =B133 -> 4 | C175: Итого за день: | F175: =F141+F145+F155+F160+F167+F174 -> 558 | G175: =G141+G145+G155+G160+G167+G174 -> 20.1 | H175: =H133+H134+H135+H136 -> 20.50 | I175: =I141+I145+I155+I160+I167+I174 -> 84.96117073 | J175: =J141+J145+J155+J160+J167+J174 -> 607.3853659 | L175: 74.77
A176: 1 | B176: 5 | C176: Завтрак | D176: закуска | E176: Свекла отварная дольками | F176: 60 | G176: 1.08 | H176: 0.06 | I176: 5.88 | J176: 28.80 | K176: ТТК Хим.состав и калорийность российских продуктов питания,табл 8, стр 168 , 2012 Дели +,
D177: гор.блюдо | E177: Жаркое по-домашнему с овощами, с индейкой | F177: 200 | G177: 14.95 | H177: 19.64 | I177: 40.46 | J177: 349.86 | K177: ТТК
D178: гор.напиток | E178: Компот из сухофруктов (75С) | F178: 200 | G178: 0.66 | H178: 0.09 | I178: 12.03 | J178: 92.90 | K178: №349 Сбор.рец. На прод-ию для обуч. Во всех образ.учреж-Дели 2017
D179: хлеб | E179: Хлеб пшеничный | F179: 20 | G179: 1.52 | H179: 0.16 | I179: 9.84 | J179: 47.00 | K179: Хим.состав и калорийность российских продуктов питания табл 6 стр 134 , 2012 Дели +
D180: хлеб | E180: Хлеб ржаной | F180: 30 | G180: 1.98 | H180: 0.36 | I180: 11.88 | J180: 59.40 | K180: Хим.состав и калорийность российских продуктов питания,табл 6, стр 144 , 2012 Дели +
D181: фрукты
D184: итого | F184: 510 | G184: =G176+G177+G178+G179+G180 -> 20.19 | H184: =H176+H177+H178+H179+H180 -> 20.31 | I184: 80.09 | J184: =J176+J177+J178+J179+J180 -> 577.96 | L184: 74.77
A185: =A176 -> 1 | B185: =B176 -> 5 | C185: Завтрак 2 | D185: фрукты
D188: итого | F188: =SUM(F185:F187) -> 0 | G188: =SUM(G185:G187) -> 0 | H188: =SUM(H185:H187) -> 0 | I188: =SUM(I185:I187) -> 0 | J188: =SUM(J185:J187) -> 0 | L188: =SUM(L185:L193) -> 0
A189: =A176 -> 1 | B189: =B176 -> 5 | C189: Обед | D189: закуска
D190: 1 блюдо
D191: 2 блюдо
D192: гарнир
D193: напиток
D194: хлеб бел.
D195: хлеб черн.
D198: итого | F198: =SUM(F189:F197) -> 0 | G198: =SUM(G189:G197) -> 0 | H198: =SUM(H189:H197) -> 0 | I198: =SUM(I189:I197) -> 0 | J198: =SUM(J189:J197) -> 0 | L198: =SUM(L195:L203) -> 0
A199: =A176 -> 1 | B199: =B176 -> 5 | C199: Полдник | D199: булочное
D200: напиток
D203: итого | F203: =SUM(F199:F202) -> 0 | G203: =SUM(G199:G202) -> 0 | H203: =SUM(H199:H202) -> 0 | I203: =SUM(I199:I202) -> 0 | J203: =SUM(J199:J202) -> 0 | L203: =SUM(L196:L202) -> 0
A204: =A176 -> 1 | B204: =B176 -> 5 | C204: Ужин | D204: гор.блюдо
D205: гарнир
D206: напиток
D207: хлеб
D210: итого | F210: =SUM(F204:F209) -> 0 | G210: =SUM(G204:G209) -> 0 | H210: =SUM(H204:H209) -> 0 | I210: =SUM(I204:I209) -> 0 | J210: =SUM(J204:J209) -> 0 | L210: =SUM(L204:L212) -> 0
A211: =A176 -> 1 | B211: =B176 -> 5 | C211: Ужин 2 | D211: кисломол.
D212: булочное
D213: напиток
D214: фрукты
D217: итого | F217: =SUM(F211:F216) -> 0 | G217: =SUM(G211:G216) -> 0 | H217: =SUM(H211:H216) -> 0 | I217: =SUM(I211:I216) -> 0 | J217: =SUM(J211:J216) -> 0 | L217: =SUM(L211:L219) -> 0
A218: =A176 -> 1 | B218: =B176 -> 5 | C218: Итого за день: | F218: =F184+F188+F198+F203+F210+F217 -> 510 | G218: =G184+G188+G198+G203+G210 -> 20.19 | H218: =H184+H188+H198+H203+H210+H217 -> 20.31 | I218: =I184+I188+I198+I203+I210+I217 -> 80.09 | J218: =J184+J188+J198+J203+J210+J217 -> 577.9571429 | L218: 74.77
A219: 1 | B219: 6 | C219: Завтрак | D219: закуска | E219: Салат из зеленого горошка к/с | F219: 30 | G219: 0.89 | H219: 1.56 | I219: 1.88 | J219: 25.08 | K219: № 10 Сбор.рец. На прод-ию для обуч. Во всех образ.учреж-Дели 2016
D220: гор.блюдо | E220: Биточки рыбные с рисом отварным рассыпчатым с маслом сливочным | F220: 258 | G220: 13.05 | H220: 14.45 | I220: 45.07 | J220: 354.94 | K220: ТТК
D221: гор.напиток | E221: Чай с сахаром, с лимоном | F221: 200 | G221: 0.11 | H221: 0.02 | I221: 10.15 | J221: 41.32 | K221: № 377 Сбор.рец. На прод-ию для обуч. Во всех образ.учреж-Дели 2017
D222: хлеб | E222: Хлеб ржаной | F222: 30 | G222: 1.98 | H222: 0.36 | I222: 11.88 | J222: 59.40 | K222: Хим.состав и калорийность российских продуктов питания,табл 6, стр 144 , 2012 Дели +
D226: итого | F226: 518 | G226: =SUM(G219:G222) -> 16.04 | H226: =SUM(H219:H222) -> 16.38 | I226: =SUM(I219:I222) -> 68.98 | J226: =SUM(J219:J222) -> 480.74 | L226: 74.77
A227: =A219 -> 1 | B227: =B219 -> 6 | C227: Завтрак 2 | D227: фрукты
D230: итого | F230: =SUM(F227:F229) -> 0 | G230: =SUM(G227:G229) -> 0 | H230: =SUM(H227:H229) -> 0 | I230: =SUM(I227:I229) -> 0 | J230: =SUM(J227:J229) -> 0 | L230: =SUM(L227:L235) -> 0
A231: =A219 -> 1 | B231: =B219 -> 6 | C231: Обед | D231: закуска
D232: 1 блюдо
D233: 2 блюдо
D234: гарнир
D235: напиток
D236: хлеб бел.
D237: хлеб черн.
D240: итого | F240: =SUM(F231:F239) -> 0 | G240: =SUM(G231:G239) -> 0 | H240: =SUM(H231:H239) -> 0 | I240: =SUM(I231:I239) -> 0 | J240: =SUM(J231:J239) -> 0 | L240: =SUM(L237:L245) -> 0
A241: =A219 -> 1 | B241: =B219 -> 6 | C241: Полдник | D241: булочное
D242: напиток
D245: итого | F245: =SUM(F241:F244) -> 0 | G245: =SUM(G241:G244) -> 0 | H245: =SUM(H241:H244) -> 0 | I245: =SUM(I241:I244) -> 0 | J245: =SUM(J241:J244) -> 0 | L245: =SUM(L238:L244) -> 0
A246: =A219 -> 1 | B246: =B219 -> 6 | C246: Ужин | D246: гор.блюдо
D247: гарнир
D248: напиток
D249: хлеб
D252: итого | F252: =SUM(F246:F251) -> 0 | G252: =SUM(G246:G251) -> 0 | H252: =SUM(H246:H251) -> 0 | I252: =SUM(I246:I251) -> 0 | J252: =SUM(J246:J251) -> 0 | L252: =SUM(L246:L254) -> 0
A253: =A219 -> 1 | B253: =B219 -> 6 | C253: Ужин 2 | D253: кисломол.
D254: булочное
D255: напиток
D256: фрукты
D259: итого | F259: =SUM(F253:F258) -> 0 | G259: =SUM(G253:G258) -> 0 | H259: =SUM(H253:H258) -> 0 | I259: =SUM(I253:I258) -> 0 | J259: =SUM(J253:J258) -> 0 | L259: =SUM(L253:L261) -> 0
A260: =A219 -> 1 | B260: =B219 -> 6 | C260: Итого за день: | F260: =F226+F230+F240+F245+F252+F259 -> 518 | G260: =G219+G220+G221+G222 -> 16.04 | H260: =H219+H220+H221+H222 -> 16.38 | I260: =I226+I230+I240+I245+I252+I259 -> 68.9781 | J260: =J226+J230+J240+J245+J252+J259 -> 480.74 | L260: 74.77
A261: 1 | B261: 7 | C261: Завтрак | D261: гор.блюдо
D262: гор.блюдо
D263: гор.напиток
D264: хлеб
D265: хлеб
D266: фрукты
D269: итого | F269: =SUM(F261:F268) -> 0 | G269: =SUM(G261:G268) -> 0 | H269: =SUM(H261:H268) -> 0 | I269: =SUM(I261:I268) -> 0 | J269: =SUM(J261:J268) -> 0 | L269: =SUM(L261:L268) -> 0
A270: =A261 -> 1 | B270: =B261 -> 7 | C270: Завтрак 2 | D270: фрукты
D273: итого | F273: =SUM(F270:F272) -> 0 | G273: =SUM(G270:G272) -> 0 | H273: =SUM(H270:H272) -> 0 | I273: =SUM(I270:I272) -> 0 | J273: =SUM(J270:J272) -> 0 | L273: =SUM(L270:L278) -> 0
A274: =A261 -> 1 | B274: =B261 -> 7 | C274: Обед | D274: закуска
D275: 1 блюдо
D276: 2 блюдо
D277: гарнир
D278: напиток
D279: хлеб бел.
... 230 more rows
